bitfinex/quotes_SOLUSD_20250822
["timestamp","ask_amount","ask_price","bid_price","bid_amount"]
[1755873103683,0.28432314,190.42,190.31,0.03]
[1755873103886,19.75904618,190.32,190.31,0.03]
[1755873104090,0.68,190.35,190.31,6.256]
[1755873104263,0.68,190.4,190.34,6.226]
[1755873104584,0.06,190.52,190.34,25.98504618]
[1755873104793,19.75904618,190.41,190.38,6.226]
[1755873105099,19.75904618,190.41,190.31,26.03]
[1755873105100,0.96432314,190.45,190.39,6.226]
[1755873105266,86.53904618,190.4,190.39,6.226]
[1755873105594,0.68,190.45,190.4,6.226]
[1755873105884,0.68,190.48,190.41,6.226]
[1755873106082,19.75904618,190.45,190.43,6.226]
[1755873106283,0.74,190.52,190.44,6.226]
[1755873106485,0.74,190.52,190.46,6.226]
[1755873106486,19.75904618,190.5,190.46,6.226]
[1755873106669,66.74,190.49,190.47,6.226]
[1755873106862,66.74,190.49,190.48,6.226]
[1755873107189,87.20904618,190.49,190.43,6.226]
[1755873107485,19.75904618,190.44,190.41,6.226]
[1755873107688,19.75904618,190.42,190.39,6.226]
[1755873107898,19.75904618,190.4,190.36,6.226]
[1755873108063,19.75904618,190.37,190.31,6.256]
[1755873108260,0.71,190.46,190.37,6.226]
[1755873108494,0.28432314,190.44,190.37,6.226]
[1755873108679,19.75904618,190.39,190.38,6.226]
[1755873108987,19.75904618,190.39,190.31,0.03]
[1755873108988,19.75904618,190.39,190.34,6.226]
[1755873109286,0.71,190.38,190.33,6.226]
[1755873109501,66.68,190.45,190.33,6.226]
[1755873109502,66.64,190.37,190.36,6.226]
[1755873109869,19.75904618,190.4,190.37,6.226]
[1755873110064,19.75904618,190.39,190.36,6.226]
[1755873110290,0.71,190.45,190.31,0.03]
[1755873110291,66.62,190.38,190.32,6.226]
[1755873110573,3.774,190.49,190.35,6.226]
[1755873110574,66.62,190.37,190.35,6.226]
[1755873110798,0.71,190.49,190.37,6.226]
[1755873111117,86.35904618,190.48,190.43,6.226]
[1755873111266,0.91,190.53,190.43,6.226]
[1755873111267,0.2,190.53,190.51,6.226]
[1755873111668,19.81904618,190.52,190.48,6.226]
[1755873111897,19.81904618,190.52,190.47,6.226]
[1755873111898,19.75904618,190.5,190.47,6.226]
[1755873112189,19.75904618,190.49,190.48,6.226]
[1755873112372,19.75904618,190.5,190.46,6.226]
[1755873112575,0.06,190.52,190.43,6.226]
[1755873112761,0.71,190.49,190.44,6.226]
[1755873112967,19.75904618,190.49,190.44,6.226]
[1755873113182,66.54,190.48,190.42,6.226]
[1755873113370,66.54,190.48,190.43,6.226]
[1755873113585,86.29904618,190.47,190.43,6.226]
[1755873113783,0.06,190.52,190.36,26.0]
[1755873113784,66.52,190.48,190.46,25.98504618]
[1755873113983,19.75904618,190.49,190.47,6.226]
[1755873114186,86.27904618,190.48,190.45,6.226]
[1755873114388,86.27904618,190.48,190.36,26.03]
[1755873114389,19.75904618,190.46,190.43,6.226]
[1755873114576,19.75904618,190.44,190.42,6.226]
[1755873114781,0.71,190.5,190.42,6.226]
[1755873114974,86.25904618,190.43,190.38,6.226]
[1755873115303,86.25904618,190.43,190.36,0.03]
[1755873115304,19.75904618,190.39,190.37,6.226]
[1755873115473,67.21,190.43,190.37,6.226]
[1755873115675,38.00216157,190.49,190.36,0.03]
[1755873115676,37.86,190.49,190.42,6.226]
[1755873115889,66.48,190.48,190.43,6.226]
[1755873116091,104.32,190.49,190.47,19.75904618]
[1755873116294,37.86,190.49,190.48,6.226]
[1755873116494,104.3,190.49,190.48,6.226]
[1755873116702,0.06,190.52,190.49,6.226]
[1755873116877,37.86,190.65,190.55,6.226]
[1755873117080,19.75904618,190.63,190.58,6.226]
[1755873117280,14.95730425,190.75,190.67,6.226]
[1755873117501,86.17904618,190.74,190.68,6.226]
[1755873117794,19.75904618,190.7,190.68,6.226]
[1755873118096,14.95730425,190.75,190.66,6.226]
[1755873118097,14.24730425,190.75,190.66,6.226]
[1755873118293,14.24730425,190.75,190.68,6.226]
[1755873118294,67.11,190.74,190.68,6.226]
[1755873118503,66.4,190.74,190.69,6.226]
[1755873118665,66.4,190.74,190.7,6.226]
[1755873118666,19.75904618,190.71,190.7,6.226]
[1755873118868,66.38,190.71,190.7,6.226]
[1755873119098,86.84904618,190.71,190.62,6.226]
[1755873119303,0.99432314,190.7,190.63,6.226]
[1755873119504,14.24730425,190.75,190.66,6.226]
[1755873119808,0.28432314,190.73,190.66,6.226]
[1755873120004,0.71,190.72,190.66,6.226]
[1755873120178,0.71,190.72,190.64,6.226]
[1755873120387,14.24730425,190.75,190.66,6.226]
[1755873120592,14.24730425,190.75,190.72,6.226]
[1755873120794,19.75904618,190.73,190.7,6.226]
[1755873120974,19.75904618,190.73,190.6,5.29911494]
[1755873120975,19.75904618,190.71,190.68,6.226]
[1755873121183,19.75904618,190.69,190.68,6.226]
[1755873121373,66.28,190.7,190.68,6.226]
[1755873121576,66.99,190.7,190.68,6.226]
[1755873121806,14.24730425,190.75,190.7,6.226]
[1755873122098,0.71,190.73,190.68,6.226]
[1755873122298,66.26,190.74,190.7,6.226]
[1755873122486,86.01904618,190.73,190.72,6.226]
[1755873122689,86.72904618,190.73,190.67,6.226]
[1755873123004,66.22,190.72,190.7,6.226]
[1755873123216,14.24730425,190.75,190.71,6.226]
[1755873123372,14.24730425,190.75,190.74,6.226]
[1755873123574,80.44730425,190.75,190.74,6.226]
[1755873123902,14.24730425,190.75,190.74,6.226]
[1755873124402,80.42730425,190.75,190.74,6.226]
[1755873124806,37.86,190.83,190.82,6.226]
[1755873125002,123.79904618,190.83,190.8,6.226]
[1755873125179,104.04,190.83,190.82,6.226]
[1755873125578,123.75904618,190.83,190.82,6.226]
[1755873125801,109.24031715,190.83,190.78,6.226]
[1755873126004,20.46904618,190.79,190.76,6.226]
[1755873126206,0.71,190.79,190.75,6.226]
[1755873126400,19.75904618,190.76,190.72,6.226]
[1755873126579,19.75904618,190.76,190.57,15.26181573]
[1755873126580,20.46904618,190.73,190.68,6.226]
[1755873126779,0.14216157,190.79,190.71,6.226]
[1755873126780,0.71,190.79,190.71,6.226]
[1755873126997,19.75904618,190.75,190.74,6.226]
[1755873127190,0.71,190.79,190.77,6.226]
[1755873127392,0.28432314,190.77,190.69,6.226]
[1755873127599,0.28432314,190.77,190.68,6.226]
[1755873127600,19.75904618,190.7,190.68,6.226]
[1755873127799,5.24054082,190.82,190.75,6.226]
[1755873128001,0.14216157,190.81,190.76,6.226]
[1755873128200,66.06,190.81,190.76,6.226]
[1755873128397,66.06,190.81,190.8,6.226]
[1755873128595,37.86,190.83,190.72,26.0]
[1755873128596,37.86,190.83,190.82,6.226]
[1755873128918,0.71,190.93,190.88,6.226]
[1755873129129,19.75904618,190.91,190.89,6.226]
[1755873129416,66.0,190.9,190.89,6.226]
[1755873129615,85.75904618,190.9,190.82,6.226]
[1755873129795,5.23703578,190.95,190.71,0.34]
[1755873129796,0.14216157,190.88,190.84,6.226]
[1755873129995,65.98,190.87,190.86,6.226]
[1755873130391,85.73904618,190.87,190.86,6.226]
[1755873130594,85.73904618,190.87,190.83,6.226]
[1755873130812,85.73904618,190.87,190.78,6.226]
[1755873130813,19.75904618,190.84,190.78,6.226]
[1755873131011,0.71,190.91,190.87,6.226]
[1755873131225,0.71,190.96,190.91,6.226]
[1755873131506,9.09205135,190.98,190.91,6.226]
[1755873131507,0.71,190.95,190.91,6.226]
[1755873131700,0.71,190.95,190.84,26.0]
[1755873131701,9.09205135,190.98,190.94,6.226]
[1755873131893,85.67904618,190.97,190.94,6.226]
[1755873132094,65.9,190.96,190.95,6.226]
[1755873132307,86.36904618,190.96,190.94,6.226]
[1755873132494,20.46904618,190.95,190.91,6.226]
[1755873132693,20.46904618,190.95,190.86,6.226]
[1755873132694,0.71,190.94,190.86,6.226]
[1755873132907,0.99432314,190.94,190.9,6.226]
[1755873133104,0.71,190.94,190.91,6.226]
[1755873133314,65.9,190.96,190.91,6.226]
[1755873133315,71.13673085,190.96,190.91,6.226]
[1755873133525,19.75904618,190.92,190.91,6.226]
[1755873133729,19.75904618,190.92,190.87,6.226]
[1755873134011,0.71,190.91,190.87,6.226]
[1755873134218,19.75904618,190.88,190.87,6.226]
[1755873134390,65.86,190.9,190.89,6.226]
[1755873134786,65.86,190.9,190.74,13.10672792]
[1755873134787,19.75904618,190.92,190.91,6.226]
[1755873134997,86.26904618,190.92,190.87,6.226]
[1755873135187,19.75904618,190.88,190.87,6.226]
[1755873135410,65.8,190.92,190.91,6.226]
[1755873135588,0.71,190.97,190.93,6.226]
[1755873135793,65.78,190.96,190.93,6.226]
[1755873136014,19.75904618,190.94,190.93,6.226]
[1755873136189,19.75904618,190.94,190.88,6.226]
[1755873136401,0.14216157,190.93,190.91,6.226]
[1755873136597,14.60475017,190.92,190.91,6.226]
[1755873136815,14.60475017,190.93,190.91,6.226]
[1755873137113,65.78,190.95,190.77,6.226]
[1755873137114,0.28432314,190.88,190.77,6.226]
[1755873137316,14.60475017,190.78,190.77,6.226]
[1755873137529,66.71432314,190.87,190.71,0.59]
[1755873137530,0.69,190.87,190.82,6.226]
[1755873137719,0.97432314,190.85,190.78,6.226]
[1755873137906,65.72,190.84,190.78,6.226]
[1755873138121,65.72,190.84,190.61,13.11513556]
[1755873138122,14.60475017,190.79,190.7,6.226]
[1755873138426,0.28432314,190.75,190.7,6.226]
[1755873138599,0.69,190.74,190.71,6.226]
[1755873138797,0.28432314,190.75,190.7,6.226]
[1755873138798,19.29527976,190.72,190.7,6.226]
[1755873138998,19.29527976,190.72,190.55,6.226]
[1755873138999,20.2696029,190.71,190.55,6.226]
[1755873139220,19.29527976,190.56,190.55,6.226]
[1755873139530,84.95527976,190.56,190.55,6.226]
[1755873139736,85.64527976,190.56,190.55,6.226]
[1755873140248,0.28432314,190.52,190.39,0.65]
[1755873140414,26.0,190.5,190.36,0.03]
[1755873140610,19.29527976,190.37,190.36,0.03]
[1755873140836,0.28432314,190.43,190.36,0.03]
[1755873141017,65.64,190.42,190.36,0.03]
[1755873141221,19.29527976,190.37,190.36,0.03]
[1755873141444,18.37656199,190.46,190.36,0.03]
[1755873141445,0.63,190.51,190.36,0.03]
[1755873141744,0.28432314,190.5,190.37,0.65]
[1755873141931,0.28432314,190.49,190.37,19.94527976]
[1755873142121,0.28432314,190.49,190.36,0.03]
[1755873142122,19.29527976,190.46,190.38,0.03]
[1755873142334,9.18470947,190.62,190.41,19.29527976]
[1755873142507,9.18470947,190.62,190.38,0.03]
[1755873142508,9.81470947,190.62,190.42,0.05]
[1755873142708,19.29527976,190.55,190.49,19.29527976]
[1755873142935,9.81470947,190.62,190.42,5.30137955]
[1755873142936,65.6,190.54,190.48,26.0]
[1755873143139,9.81470947,190.62,190.45,10.0]
[1755873143140,9.18470947,190.62,190.51,26.0]
[1755873143438,65.58,190.59,190.48,19.29527976]
[1755873143615,9.18470947,190.62,190.48,19.29527976]
[1755873143616,9.18470947,190.62,190.52,0.65]
[1755873143812,65.58,190.61,190.52,0.65]
[1755873144014,0.14216157,190.6,190.46,26.0]
[1755873144209,0.14216157,190.6,190.36,0.03]
[1755873144426,0.28432314,190.57,190.37,0.65]
[1755873144634,19.29527976,190.45,190.38,19.29527976]
[1755873144824,0.28432314,190.52,190.36,0.03]
[1755873144825,65.56,190.44,190.36,0.03]
[1755873145019,0.28432314,190.52,190.36,0.07]
[1755873145020,19.29527976,190.41,190.36,0.07]
[1755873145224,19.29527976,190.42,190.36,19.32527976]
[1755873145434,19.29527976,190.44,190.38,19.29527976]
[1755873145615,19.29527976,190.48,190.41,19.29527976]
[1755873145925,26.0,190.56,190.39,0.62]
[1755873145926,19.29527976,190.44,190.39,0.62]
[1755873146243,65.54,190.47,190.36,0.03]
[1755873146244,19.29527976,190.4,190.36,0.03]
[1755873146438,19.29527976,190.37,190.36,0.03]
[1755873146938,0.28432314,190.38,190.36,0.03]
[1755873147150,63.82,190.44,190.37,19.29527976]
[1755873147151,37.82,190.44,190.37,19.29527976]
[1755873147449,65.52,190.43,190.36,0.68]
[1755873147646,19.29527976,190.42,190.36,0.68]
[1755873147943,65.52,190.43,190.36,0.68]
[1755873148123,65.5,190.46,190.42,19.29527976]
[1755873148323,65.5,190.46,190.43,0.65]
[1755873148524,19.29527976,190.44,190.37,0.65]
[1755873148717,0.63,190.55,190.4,19.29527976]
[1755873148918,19.29527976,190.47,190.4,19.29527976]
[1755873149136,65.46,190.46,190.4,19.94527976]
[1755873149324,37.82,190.58,190.4,19.29527976]
[1755873149514,26.0,190.55,190.4,0.65]
[1755873149735,19.29527976,190.48,190.42,19.29527976]
[1755873150048,37.82,190.58,190.47,45.29527976]
[1755873150049,65.46,190.5,190.47,45.29527976]
[1755873150246,37.82,190.58,190.48,0.65]
[1755873150427,57.11527976,190.58,190.52,19.29527976]
[1755873150635,65.44,190.57,190.54,19.29527976]
[1755873150869,19.29527976,190.59,190.54,0.05]
[1755873151018,65.42,190.58,190.54,0.05]
[1755873151347,65.42,190.58,190.46,0.65]
[1755873151348,19.29527976,190.55,190.46,0.65]
[1755873151544,19.29527976,190.53,190.46,0.65]
[1755873151854,0.14216157,190.57,190.43,0.65]
[1755873152023,19.29527976,190.55,190.48,19.29527976]
[1755873152341,65.4,190.56,190.49,19.29527976]
[1755873152542,35.18470947,190.62,190.48,26.0]
[1755873152543,65.38,190.57,190.48,26.0]
[1755873152857,65.38,190.57,190.52,19.29527976]
[1755873153040,65.38,190.57,190.49,5.24950654]
[1755873153347,84.67527976,190.57,190.5,0.65]
[1755873153555,65.38,190.57,190.47,5.24991653]
[1755873153757,19.29527976,190.53,190.45,5.29062007]
[1755873153927,65.38,190.57,190.4,13.12976632]
[1755873153928,19.29527976,190.46,190.4,19.29527976]
[1755873154131,19.29527976,190.46,190.37,5.2529285]
[1755873154132,65.34,190.45,190.39,0.65]
[1755873154454,0.28432314,190.51,190.34,0.68]
[1755873154455,65.34,190.44,190.34,0.68]
[1755873154624,84.61527976,190.43,190.36,5.28317245]
[1755873154830,65.32,190.43,190.38,19.29527976]
[1755873155155,0.63,190.57,190.42,19.29527976]
[1755873155453,0.63,190.66,190.53,19.29527976]
[1755873155633,0.63,190.66,190.57,19.29527976]
[1755873155838,65.95,190.61,190.49,0.65]
[1755873156035,19.29527976,190.54,190.39,26.0]
[1755873156225,19.29527976,190.54,190.46,26.0]
[1755873156427,19.29527976,190.47,190.39,0.64]
[1755873156733,0.63,190.53,190.39,0.64]
[1755873156734,19.29527976,190.49,190.42,24.54682896]
[1755873157053,65.28,190.5,190.47,19.29527976]
[1755873157350,65.28,190.5,190.38,0.63]
[1755873157351,19.29527976,190.48,190.38,0.63]
[1755873157532,19.29527976,190.39,190.36,0.03]
[1755873157730,0.28432314,190.46,190.36,19.32527976]
[1755873158050,19.29527976,190.44,190.37,45.29527976]
[1755873158350,19.29527976,190.44,190.36,5.93310965]
[1755873158352,19.29527976,190.4,190.36,0.03]
[1755873158524,19.29527976,190.37,190.36,0.03]
[1755873158729,19.5796029,190.37,190.36,0.03]
[1755873158931,0.28432314,190.36,190.34,0.03]
[1755873159131,65.22,190.35,190.34,0.03]
[1755873159338,19.29527976,190.35,190.34,0.03]
[1755873159539,84.7996029,190.35,190.34,0.03]
[1755873159857,84.7996029,190.35,190.15,10.03]
[1755873159858,0.28432314,190.34,190.22,19.29527976]
[1755873160154,19.29527976,190.25,190.21,0.13]
[1755873160354,19.29527976,190.22,190.2,0.1]
[1755873160654,65.18,190.22,190.2,0.1]
[1755873161158,19.5796029,190.21,190.2,0.1]
[1755873161528,65.16,190.21,190.2,0.1]
[1755873161732,65.18,190.21,190.2,0.1]
[1755873162032,85.2496029,190.21,190.2,0.1]
[1755873162229,85.2496029,190.21,190.15,0.03]
[1755873162230,0.28432314,190.2,190.15,0.03]
[1755873162427,19.5796029,190.2,190.15,0.03]
[1755873162636,43.09493372,190.3,190.15,0.03]
[1755873162845,43.09493372,190.3,190.17,19.29527976]
[1755873162846,37.84,190.3,190.17,19.29527976]
[1755873163055,0.63216157,190.29,190.16,0.65]
[1755873163245,19.29527976,190.17,190.15,0.03]
[1755873163426,19.29527976,190.16,190.15,0.03]
[1755873163845,65.14,190.17,190.15,0.03]
[1755873164031,19.29527976,190.17,190.15,0.03]
[1755873164229,19.43744133,190.16,190.15,0.03]
[1755873164448,19.29527976,190.16,190.15,0.03]
[1755873164630,19.5796029,190.16,190.15,0.03]
[1755873164831,0.28432314,190.15,190.14,0.03]
[1755873165034,19.5796029,190.15,190.08,0.03]
[1755873165330,19.5796029,190.09,190.08,0.03]
[1755873165545,19.29527976,190.1,190.08,0.03]
[1755873165848,10.0,190.33,190.09,19.94527976]
[1755873166061,19.29527976,190.11,190.08,0.03]
[1755873166226,19.43744133,190.09,190.08,0.03]
[1755873166429,84.6596029,190.09,190.08,0.03]
[1755873166855,0.43,190.21,190.08,0.03]
[1755873167168,0.14216157,190.19,190.08,0.03]
[1755873167336,19.29527976,190.15,190.08,0.03]
[1755873167535,65.04,190.14,190.1,19.29527976]
[1755873167853,65.06,190.13,190.08,0.03]
[1755873168055,65.06,190.12,190.08,0.03]
[1755873168271,19.29527976,190.09,190.08,0.03]
[1755873168432,19.5796029,190.09,190.08,0.03]
[1755873168628,20.0096029,190.09,190.08,0.03]
[1755873168867,19.5796029,190.09,190.08,0.03]
[1755873169050,102.94,190.12,190.08,0.03]
[1755873169051,37.88,190.12,190.08,0.03]
[1755873169246,65.02,190.11,190.08,0.03]
[1755873169428,19.29527976,190.09,190.08,0.03]
[1755873169634,19.5796029,190.09,190.08,0.03]
[1755873170067,20.0096029,190.09,190.08,0.03]
[1755873170259,0.28432314,190.09,190.08,0.03]
[1755873170448,19.29527976,190.0,189.94,0.1]
[1755873170636,19.5796029,189.95,189.94,0.1]
[1755873170838,0.28432314,189.94,189.79,0.67]
[1755873171157,0.4,189.93,189.79,0.67]
[1755873171456,37.9,189.94,189.79,5.93895668]
[1755873171667,26.0,190.0,189.89,19.29527976]
[1755873171845,64.98,189.99,189.9,0.67]
[1755873172050,19.29527976,189.99,189.9,0.67]
[1755873172271,64.98,189.98,189.9,0.67]
[1755873172438,64.96,189.97,189.94,19.29527976]
[1755873172762,64.96,189.97,189.95,0.67]
[1755873172962,2.75342031,190.06,189.96,19.96527976]
[1755873173152,19.29527976,190.06,189.97,0.67]
[1755873173335,19.29527976,190.03,189.97,19.96527976]
[1755873173660,0.4,190.11,189.9,18.43075302]
[1755873173661,19.29527976,190.13,190.02,19.29527976]
[1755873173864,0.4,190.19,190.07,19.29527976]
[1755873174054,0.4,190.26,190.13,19.29527976]
[1755873174367,2.75083998,190.32,190.13,19.29527976]
[1755873174368,0.4,190.29,190.13,0.67]
[1755873174664,64.94,190.21,190.15,19.29527976]
[1755873174852,19.29527976,190.19,190.13,19.96527976]
[1755873175048,64.94,190.21,190.13,0.67]
[1755873175049,19.29527976,190.2,190.13,0.67]
[1755873175352,19.29527976,190.14,190.09,0.67]
[1755873175565,64.94,190.21,190.1,19.29527976]
[1755873175861,19.29527976,190.18,190.1,0.67]
[1755873176049,19.29527976,190.18,190.11,19.29527976]
[1755873176252,19.29527976,190.14,190.08,19.29527976]
[1755873176468,19.29527976,190.17,190.1,19.29527976]
[1755873176757,64.88,190.2,190.15,19.29527976]
[1755873176971,84.17527976,190.2,190.11,0.03]
[1755873177165,0.06,190.33,190.15,19.29527976]
[1755873177370,19.29527976,190.19,190.11,0.03]
[1755873177574,102.76,190.22,190.07,31.33121955]
[1755873177761,0.28432314,190.21,190.12,19.29527976]
[1755873177952,37.9,190.22,190.18,19.29527976]
[1755873178143,37.9,190.22,190.16,19.29527976]
[1755873178345,37.9,190.22,190.17,14.70643823]
[1755873178555,37.9,190.22,190.14,14.70643823]
[1755873178763,14.70643823,190.21,190.14,14.70643823]
[1755873178976,37.9,190.22,190.18,14.70643823]
[1755873179283,37.9,190.22,190.08,14.70643823]
[1755873179284,14.70643823,190.19,190.09,0.03]
[1755873179480,0.28432314,190.21,190.09,0.03]
[1755873179643,0.28432314,190.21,190.12,14.70643823]
[1755873179841,37.9,190.22,190.1,0.67]
[1755873180072,37.9,190.22,190.17,14.70643823]
[1755873180073,64.78,190.21,190.17,14.70643823]
[1755873180368,0.28432314,190.17,190.08,0.67]
[1755873180577,19.39513039,190.11,190.06,0.03]
[1755873180743,64.76,190.11,190.08,0.03]
[1755873181256,19.67945353,190.09,190.08,0.03]
[1755873181643,64.74,190.09,190.08,0.03]
[1755873181842,0.28432314,190.09,190.08,0.03]
[1755873182048,65.02432314,190.09,190.08,0.03]
[1755873182346,64.74,190.09,190.08,19.42513039]
[1755873182558,19.39513039,190.19,190.08,0.7]
[1755873182766,19.39513039,190.13,190.08,0.03]
[1755873183051,19.39513039,190.09,190.08,0.03]
[1755873183373,64.72,190.09,190.08,0.03]
[1755873183669,64.72,190.12,190.08,0.03]
[1755873183857,0.14216157,190.21,190.11,19.39513039]
[1755873184041,64.7,190.2,190.09,0.04]
[1755873184243,84.09513039,190.2,190.09,0.04]
[1755873184446,63.9,190.22,190.17,19.39513039]
[1755873184447,37.9,190.22,190.17,19.39513039]
[1755873184648,37.9,190.22,190.08,26.03]
[1755873184844,0.46,190.29,190.21,19.39513039]
[1755873184845,0.06,190.29,190.21,19.39513039]
[1755873185046,0.06,190.29,190.19,26.0]
[1755873185047,0.06,190.29,190.27,19.39513039]
[1755873185280,19.45513039,190.29,190.19,26.0]
[1755873185450,19.39513039,190.26,190.18,0.67]
[1755873185775,19.39513039,190.2,190.13,19.39513039]
[1755873186080,0.28432314,190.18,190.08,0.07]
[1755873186266,26.0,190.27,190.08,0.03]
[1755873186267,19.39513039,190.12,190.08,0.03]
[1755873186480,19.39513039,190.09,190.08,0.03]
[1755873186783,5.26121955,190.07,190.0,100.0]
[1755873187073,5.26121955,190.07,189.93,0.03]
[1755873187074,26.0,189.98,189.93,0.03]
[1755873187246,90.62,189.97,189.93,0.03]
[1755873187454,19.67945353,189.94,189.93,0.03]
[1755873187673,64.88432314,189.94,189.93,0.03]
[1755873187878,64.6,189.94,189.93,0.03]
[1755873188060,37.92,189.99,189.93,0.03]
[1755873188257,64.6,189.98,189.93,0.03]
[1755873188567,64.6,189.98,189.95,19.39513039]
[1755873188767,37.92,189.99,189.93,0.03]
[1755873189068,37.92,189.99,189.97,19.39513039]
[1755873189376,64.6,190.0,189.98,0.67]
[1755873189582,19.39513039,189.99,189.94,0.67]
[1755873189968,10.0,190.19,189.95,0.66]
[1755873190170,23.14330507,190.22,190.02,19.39513039]
[1755873190479,64.56,190.13,190.08,19.39513039]
[1755873190661,64.56,190.13,190.03,0.67]
[1755873190989,64.56,190.13,190.1,19.39513039]
[1755873191276,9.73359923,190.28,190.12,19.39513039]
[1755873191277,19.39513039,190.23,190.12,19.39513039]
[1755873191486,37.92,190.28,190.13,0.67]
[1755873191487,64.54,190.22,190.13,0.67]
[1755873191647,64.54,190.22,190.17,19.39513039]
[1755873191848,64.54,190.22,190.2,19.39513039]
[1755873192072,64.54,190.22,190.08,26.0]
[1755873192265,19.39513039,190.17,190.05,5.26177321]
[1755873192468,64.54,190.22,190.08,0.67]
[1755873192664,64.5,190.21,190.08,0.67]
[1755873192863,37.92,190.28,190.2,19.39513039]
[1755873193065,37.92,190.28,190.24,19.39513039]
[1755873193287,37.92,190.28,190.15,26.0]
[1755873193466,64.5,190.27,190.15,26.0]
[1755873193664,19.39513039,190.22,190.16,0.04]
[1755873193869,64.5,190.27,190.21,19.39513039]
[1755873194179,64.5,190.27,190.16,0.04]
[1755873194383,83.89513039,190.27,190.21,19.39513039]
[1755873194683,37.92,190.28,190.23,19.39513039]
[1755873194875,0.06,190.29,190.11,5.26010242]
[1755873194876,0.06,190.29,190.27,19.39513039]
[1755873195078,0.06,190.29,190.28,20.06513039]
[1755873195265,0.06,190.29,190.24,0.67]
[1755873195463,19.39513039,190.28,190.22,19.39513039]
[1755873195665,0.06,190.29,190.24,19.39513039]
[1755873195989,0.06,190.29,190.27,19.39513039]
[1755873196189,0.06,190.29,190.22,19.39513039]
[1755873196483,0.06,190.29,190.1,5.26038926]
[1755873196484,0.06,190.29,190.2,19.39513039]
[1755873196681,19.39513039,190.25,190.19,0.02]
[1755873196871,19.39513039,190.23,190.07,5.26121955]
[1755873197188,0.34432314,190.29,190.02,0.52626039]
[1755873197189,83.77513039,190.22,190.16,19.39513039]
[1755873197387,19.39513039,190.21,190.15,0.03]
[1755873197680,64.38,190.22,190.15,0.03]
[1755873197681,19.39513039,190.23,190.15,0.03]
[1755873197986,0.06,190.24,190.22,19.39513039]
[1755873198176,0.06,190.24,190.23,0.66]
[1755873198381,0.06,190.24,190.23,20.05513039]
[1755873198382,64.4,190.24,190.23,20.05513039]
[1755873198683,0.06,190.31,190.26,26.0]
[1755873198884,0.06,190.31,190.23,0.66]
[1755873199100,19.45513039,190.31,190.23,0.66]
[1755873199391,0.18,190.47,190.23,5.91679315]
[1755873199575,64.3,190.4,190.29,26.0]
[1755873199774,64.3,190.36,190.29,0.66]
[1755873199960,64.3,190.36,190.19,0.52578999]
[1755873199961,19.39513039,190.35,190.24,26.66]
[1755873200169,64.3,190.36,190.24,0.66]
[1755873200359,0.28432314,190.35,190.23,19.39513039]
[1755873200560,0.28432314,190.35,190.03,26.34876435]
[1755873200561,19.39513039,190.26,190.15,0.66]
[1755873200759,19.39513039,190.24,190.18,19.39513039]
[1755873201005,19.39513039,190.24,190.15,0.66]
[1755873201006,0.28432314,190.21,190.15,19.39513039]